lending/lending_fUSD_20240120
["ID","MTS","AMOUNT","RATE_DAILY","PERIOD"]
[312321194,1705773040609,-167.43304946,0.00025,2]
[312321195,1705773040618,-158.71925605,0.00025,2]
[312321196,1705773040628,-1249.31192892,0.00025,2]
[312321197,1705773040637,-200.0,0.00025,2]
[312321198,1705773040646,-179.0,0.00025,2]
[312321199,1705773040655,-350.0,0.00025,3]
[312321200,1705773040665,-3000.0,0.00025,2]
[312321202,1705773040674,-3000.0,0.0002501,2]
[312321203,1705773040683,-3000.0,0.0002502,2]
[312321204,1705773040692,-3000.0,0.0002503,2]
[312321205,1705773040701,-3000.0,0.0002504,2]
[312321206,1705773040711,-3000.0,0.0002505,2]
[312321207,1705773040720,-3000.0,0.0002506,2]
[312321208,1705773040729,-3000.0,0.0002507,2]
[312321209,1705773040739,-3000.0,0.0002508,2]
[312321210,1705773040748,-3000.0,0.0002509,2]
[312321211,1705773040757,-3000.0,0.000251,2]
[312321212,1705773040766,-3000.0,0.0002511,2]
[312321213,1705773040776,-3000.0,0.0002512,2]
[312321214,1705773040786,-3000.0,0.0002513,2]
[312321215,1705773040795,-3000.0,0.0002514,2]
[312321216,1705773040804,-152.04032675,0.0002514,2]
[312321217,1705773040814,-3000.0,0.0002515,2]
[312321218,1705773040823,-3000.0,0.0002516,2]
[312321219,1705773040833,-3000.0,0.0002517,2]
[312321220,1705773040842,-3000.0,0.0002518,2]
[312321221,1705773040855,-3000.0,0.0002519,2]
[312321222,1705773040865,-3000.0,0.000252,2]
[312321223,1705773040874,-3000.0,0.0002521,2]
[312321224,1705773040884,-3000.0,0.0002522,2]
[312321225,1705773040895,-3000.0,0.0002523,2]
[312321226,1705773040905,-5138.752411,0.0002524,2]
[312321227,1705773040915,-201.47711851,0.000253,2]
[312321228,1705773040925,-157.47,0.00025386,2]
[312321229,1705773040937,-155.18697965,0.00025388,2]
[312321230,1705773040946,-3559.0,0.000254,2]
[312321231,1705773040956,-26209.0,0.000254,2]
[312321232,1705773040967,-159.04,0.00025466,2]
[312321233,1705773040976,-892.5,0.00025501,2]
[312321234,1705773040986,-10085.66366643,0.00025506,2]
[312321235,1705773040995,-500.0,0.00025538,2]
[312321236,1705773041006,-230.35,0.00025895,2]
[312321237,1705773041015,-150.0,0.000259,2]
[312321238,1705773041025,-595.91,0.00025923,2]
[312321239,1705773041034,-159.04,0.0002598,2]
[312321240,1705773041043,-500.0,0.00026086,2]
[312321241,1705773041053,-163226.24155924,0.00026115,3]
[312321242,1705773041063,-1134.50473589,0.00026115,3]
[312321243,1705773041072,-17069.46810689,0.00026115,3]
[312321244,1705773041082,-220.66090534,0.00026115,3]
[312321245,1705773041092,-257.27900846,0.00026115,3]
[312321246,1705773041101,-2834.11472196,0.00026115,3]
[312321247,1705773041112,-1480.50800688,0.00026115,3]
[312321248,1705773041121,-582.08504246,0.00026115,3]
[312321249,1705773041130,-291.04252123,0.00026115,3]
[312321250,1705773041140,-2680.18897566,0.00026115,3]
[312321251,1705773041150,-563.46793322,0.000263,2]
[312321252,1705773041159,-892.5,0.00026316,2]
[312321253,1705773041417,-840.0,0.00026319,2]
[312321254,1705773041426,-4893.12,0.00026575,2]
[312321255,1705773041435,-7454.97,0.00026575,2]
[312321256,1705773041444,-500.0,0.00026634,2]
[312321257,1705773041454,-155.0,0.0002672,2]
[312321258,1705773041463,-155.0,0.0002672,2]
[312321259,1705773041472,-534.16831827,0.0002672,2]
[312321260,1705773041481,-2102.50081879,0.00026838,3]
[312321261,1705773041491,-10085.66366643,0.00026859,2]
[312321262,1705773041499,-1800.0,0.000269,9]
[312321263,1705773041508,-155.0,0.00026982,2]
[312321264,1705773041518,-417.60996336,0.00027,2]
[312321265,1705773041527,-155.0,0.00027,2]
[312321266,1705773041537,-400.0,0.00027,3]
[312321267,1705773041546,-892.5,0.00027132,2]
[312321268,1705773041556,-160.0,0.00027155,2]
[312321269,1705773041565,-500.0,0.00027182,2]
[312321270,1705773041575,-50000.0,0.000272,2]
[312321271,1705773041585,-2795.11,0.00027397,2]
[312321273,1705773041594,-595.91,0.00027567,2]
[312321274,1705773041605,-1000.0,0.0002786,2]
[312321275,1705773041615,-892.5,0.00027947,2]
[312321276,1705773041625,-6232.91,0.00027959,2]
[312321277,1705773041635,-6232.91,0.00027959,2]
[312321278,1705773041644,-6232.91,0.00027959,2]
[312321279,1705773041654,-6232.91,0.00027959,2]
[312321280,1705773041664,-6232.91,0.00027959,2]
[312321281,1705773041673,-6232.91,0.00027959,2]
[312321282,1705773041683,-6232.91,0.00027959,2]
[312321283,1705773041693,-6232.91,0.00027959,2]
[312321284,1705773041702,-317.43646122,0.0002796,2]
[312321285,1705773041711,-3029.53701716,0.0002796,2]
[312321286,1705773041721,-10292.70742578,0.0002796,6]
[312321287,1705773041730,-2992.23545658,0.0002796,6]
[312321288,1705773041740,-44267.39225522,0.0002796,7]
[312321289,1705773041749,-705.19394437,0.00027962,2]
[312321290,1705773041759,-213.20943281,0.00027962,2]
[312321291,1705773041769,-226.03253438,0.00027962,2]
[312321292,1705773041778,-203.12390135,0.00028,2]
[312321293,1705773041789,-689.05942203,0.00028,2]
[312321294,1705773041799,-155.18697965,0.00028077,2]
[312321295,1705773041809,-563.46793322,0.000281,2]
[312321296,1705773041820,-230.35,0.00028159,2]
[312321297,1705773041830,-10085.66366643,0.00028212,2]
[312321298,1705773041841,-167.36,0.00028307,2]
[312321299,1705773041852,-207.0,0.00028383,2]
[312321300,1705773041862,-2795.11,0.00028767,2]
[312321301,1705773041872,-840.0,0.00028951,2]
[312321302,1705773041881,-450.0,0.00029,3]
[312321303,1705773041892,-279.69091136,0.00029,2]
[312321304,1705773041902,-150.0,0.00029,2]
[312321305,1705773041911,-446.22337711,0.00029,7]
[312321306,1705773041921,-2102.50081879,0.00029007,4]
[312321307,1705773041934,-595.91,0.0002921,2]
[312321308,1705773041944,-1934.0,0.0002927,2]
[312321309,1705773041953,-1138.0,0.0002927,2]
[312321310,1705773041962,-150.0,0.0002927,2]
[312321311,1705773041972,-150.0,0.0002927,2]
[312321312,1705773041982,-150.0,0.0002927,2]
[312321313,1705773041990,-150.0,0.0002927,2]
[312321314,1705773042000,-185.63118467,0.0002935,2]
[312321315,1705773042009,-1447.34197199,0.00029445,2]
[312321316,1705773042019,-219.74,0.000295,2]
[312321317,1705773042030,-10085.66366643,0.00029565,2]
[312321318,1705773042039,-4909.11234598,0.0002968,2]
[312321319,1705773042048,-150.0,0.0002968,2]
[312321320,1705773042059,-150.0,0.0002968,2]
[312321321,1705773042068,-158.12857,0.0002968,2]
[312321322,1705773042077,-1447.34197199,0.00029717,2]
[312321323,1705773042087,-175.56419383,0.000298,2]
[312321324,1705773042098,-731.13762758,0.000298,2]
[312321325,1705773042107,-160.0,0.00029871,2]
[312321326,1705773042117,-563.46793322,0.000299,2]
[312321327,1705773042127,-2400.0,0.000299,10]
[312321328,1705773042137,-6232.93,0.00029979,2]
[312321329,1705773042146,-6232.93,0.00029979,2]
[312321330,1705773042156,-32277.53853692,0.0002998,2]
[312321331,1705773042166,-3195.13608794,0.0002998,2]
[312321332,1705773042177,-191.1567856,0.0002998,7]
[312321333,1705773042186,-838.90738321,0.0002999,2]
[312321334,1705773042195,-278.0072,0.00029998,2]
[312321335,1705773042204,-6497.42259164,0.00029999,2]
[312321336,1705773042214,-50000.0,0.0003,2]
[312321337,1705773042223,-155.0,0.0003,2]
[312321338,1705773042233,-9641.46795832,0.0003,2]
[312321339,1705773042242,-192.24957213,0.0003,2]
[312321340,1705773042251,-582.7666979,0.0003,2]
[312321341,1705773042260,-1578.52030336,0.0003,4]
[312321342,1705773042269,-692.06285158,0.0003,2]
[312321343,1705773042279,-643177.27900019,0.0003,2]
[312321344,1705773042288,-3000.0,0.0003,2]
[312321345,1705773042297,-152.7,0.0003,2]
[312321346,1705773042306,-295.46237076,0.000301,2]
[312321347,1705773042315,-2795.11,0.00030136,2]
[312321348,1705773042325,-153.84,0.00030137,2]
[312321349,1705773042334,-150.24,0.00030137,2]
[312321350,1705773042343,-1447.34197199,0.00030175,2]
[312321351,1705773042353,-230.35,0.00030423,2]
[312321352,1705773042363,-1000.0,0.00030487,2]
[312321353,1705773042372,-58000.0,0.00030561,3]
[312321354,1705773042381,-58000.0,0.0003057,3]
[312321355,1705773042390,-58000.0,0.00030579,3]
[312321356,1705773042399,-58000.0,0.00030587,3]
[312321357,1705773042408,-215.98204294,0.00030595,2]
[312321358,1705773042418,-203.93112054,0.00030595,2]
[312321359,1705773042427,-58000.0,0.00030596,3]
[312321360,1705773042436,-58000.0,0.00030605,3]
[312321361,1705773042445,-58000.0,0.00030614,3]
[312321362,1705773042454,-58000.0,0.00030623,3]
[312321363,1705773042462,-58000.0,0.00030631,3]
[312321364,1705773042471,-58000.0,0.0003064,3]
[312321365,1705773042481,-58000.0,0.00030649,3]
[312321366,1705773042490,-9807.32436026,0.00030649,3]
[312321367,1705773042499,-155.18697965,0.00030766,2]
[312321368,1705773042509,-3000.0,0.0003079,2]
[312321369,1705773042518,-10085.66366643,0.00030919,2]
[312321370,1705773042527,-50000.0,0.00031,2]
[312321371,1705773042536,-500.0,0.00031,3]
[312321372,1705773042545,-20000.0,0.00031,2]
[312321373,1705773042554,-150.24,0.00031023,2]
[312321374,1705773042563,-153.84,0.0003105,2]
[312321375,1705773042573,-2102.50081879,0.00031176,5]
[312321376,1705773042583,-8500.93125187,0.0003143,4]
[312321377,1705773042592,-261.04,0.00031435,2]
[312321378,1705773042601,-339.19,0.00031435,2]
[312321379,1705773042610,-1000.0,0.000315,2]
[312321380,1705773042620,-2795.11,0.00031506,2]
[312321381,1705773042629,-151.95,0.00031507,2]
[312321382,1705773042638,-840.0,0.00031583,2]
[312321383,1705773042647,-44736.2602,0.000317,3]
[312321384,1705773042656,-200.0,0.00031737,3]
[312321385,1705773042666,-10860.0,0.00031752,5]
[312321386,1705773042675,-242601.02617119,0.000318,3]
[312321387,1705773042895,-105261.69123481,0.000318,3]
[312321388,1705773042905,-150.0,0.00031843,7]
[312321389,1705773042915,-150.0,0.00031843,7]
[312321390,1705773042925,-5000.0,0.0003189,2]
[312321391,1705773042936,-7999.99,0.0003189,14]
[312321392,1705773042946,-1570.0,0.00031893,5]
[312321393,1705773042956,-207.0,0.00031896,8]
[312321394,1705773042965,-500.0,0.00031901,3]
[312321395,1705773042974,-150.24,0.0003191,2]
[312321396,1705773042984,-500.0,0.0003191,3]
[312321397,1705773042993,-500.0,0.00031919,3]
[312321398,1705773043002,-500.0,0.00031927,3]
[312321399,1705773043012,-500.0,0.00031936,3]
[312321401,1705773043022,-500.0,0.00031945,3]
[312321403,1705773043031,-153.84,0.00031963,2]
[312321404,1705773043041,-50000.0,0.00032,2]
[312321406,1705773043051,-298.29879494,0.00032,4]
[312321408,1705773043060,-3796.55759874,0.00032,4]
[312321410,1705773043069,-20000.0,0.00032,2]
[312321412,1705773043079,-3000.0,0.0003204,2]
[312321414,1705773043088,-357.87420369,0.00032064,2]
[312321416,1705773043098,-215.98204294,0.00032099,2]
[312321418,1705773043107,-203.93112054,0.00032099,2]
[312321419,1705773043117,-17431.0,0.000321,5]
[312321420,1705773043127,-1138.0,0.0003227,2]
[312321421,1705773043136,-150.0,0.0003227,2]
[312321422,1705773043145,-150.0,0.0003227,2]
[312321423,1705773043154,-10085.66366643,0.00032272,4]
[312321424,1705773043163,-194.0,0.00032275,2]
[312321425,1705773043173,-657.81618824,0.000325,2]
[312321426,1705773043182,-160.0,0.00032586,2]
[312321427,1705773043191,-230.35,0.00032687,2]
[312321428,1705773043200,-150.24,0.00032796,2]
[312321429,1705773043210,-613.00266729,0.00032876,7]
[312321430,1705773043219,-370.38059151,0.00032876,7]
[312321431,1705773043227,-273.61281322,0.00032876,7]
[312321432,1705773043237,-169.41869067,0.00032876,7]
[312321433,1705773043247,-371.70509541,0.00032876,7]
[312321434,1705773043256,-549.235556,0.00032876,7]
[312321435,1705773043265,-219.6942224,0.00032876,7]
[312321436,1705773043274,-185.8525477,0.00032876,7]
[312321437,1705773043283,-245.20106692,0.00032876,7]
[312321438,1705773043292,-185.19029576,0.00032876,7]
[312321439,1705773043301,-2795.11,0.00032876,2]
[312321440,1705773043310,-153.84,0.00032877,2]
[312321441,1705773043319,-734.89,0.00032877,15]
[312321442,1705773043329,-3808.26321779,0.00032899,4]
[312321443,1705773043338,-2828.81846847,0.00032899,4]
[312321444,1705773043347,-1750.0,0.000329,2]
[312321445,1705773043356,-391.0,0.000329,2]
[312321446,1705773043366,-188.50752462,0.000329,2]
[312321447,1705773043375,-2661.31622058,0.000329,2]
[312321448,1705773043384,-278.0,0.000329,2]
[312321449,1705773043393,-10402.6603988,0.000329,2]
[312321450,1705773043402,-10402.6603988,0.000329,2]
[312321451,1705773043411,-10402.6603988,0.000329,2]
[312321452,1705773043419,-10402.6603988,0.000329,2]
[312321453,1705773043428,-10402.6603988,0.000329,2]
[312321454,1705773043438,-10402.6603988,0.000329,2]
[312321455,1705773043447,-3100.0,0.000329,12]
[312321456,1705773043456,-10402.6603988,0.000329,2]
[312321457,1705773043465,-10402.6603988,0.000329,2]
[312321458,1705773043474,-10402.6603988,0.000329,2]
[312321459,1705773043483,-10402.6603988,0.000329,2]
[312321460,1705773043492,-10402.6603988,0.000329,2]
[312321461,1705773043501,-562.09604105,0.000329,2]
[312321462,1705773043510,-501.0,0.000329,2]
[312321463,1705773043519,-800.0,0.00032969,15]
[312321464,1705773043528,-50000.0,0.00033,3]
[312321465,1705773043537,-1466.74907824,0.00033,5]
[312321466,1705773043546,-550.0,0.00033,3]
[312321467,1705773043555,-4443.14518124,0.00033,2]
[312321468,1705773043567,-15556.85481876,0.00033,2]
[312321469,1705773043576,-3000.0,0.0003329,2]
[312321470,1705773043585,-2102.50081879,0.00033345,6]
[312321471,1705773043594,-261.04,0.00033453,2]
[312321472,1705773043603,-339.19,0.00033453,2]
[312321473,1705773043613,-155.18697965,0.00033455,2]
[312321474,1705773043624,-489.8044188,0.000335,4]
[312321475,1705773043634,-739.12,0.000335,2]
[312321476,1705773043643,-739.12,0.000335,2]
[312321477,1705773043654,-739.12,0.000335,2]
[312321478,1705773043663,-739.12,0.000335,2]
[312321479,1705773043673,-739.12,0.000335,2]
[312321480,1705773043682,-739.12,0.000335,2]
[312321481,1705773043691,-739.12,0.000335,2]
[312321482,1705773043700,-739.12,0.000335,2]
[312321483,1705773043709,-739.12,0.000335,2]
[312321484,1705773043719,-739.12,0.000335,2]
[312321485,1705773043728,-739.12,0.000335,2]
[312321486,1705773043737,-739.12,0.000335,2]
[312321487,1705773043746,-739.12,0.000335,2]
[312321488,1705773043755,-739.12,0.000335,2]
[312321489,1705773043764,-739.12,0.000335,2]
[312321490,1705773043773,-739.12,0.000335,2]
[312321491,1705773043782,-739.12,0.000335,2]
[312321492,1705773043792,-739.12,0.000335,2]
[312321493,1705773043802,-739.12,0.000335,2]
[312321494,1705773043811,-739.12,0.000335,2]
[312321495,1705773043821,-152.7,0.000336,2]
[312321496,1705773043833,-152.7,0.000336,2]
[312321497,1705773043842,-10085.66366643,0.00033625,5]
[312321498,1705773043852,-6848.86152782,0.0003366,2]
[312321499,1705773043863,-150.24,0.00033683,2]
[312321500,1705773043872,-153.84,0.0003379,2]
[312321501,1705773043882,-433.91206314,0.00033846,2]
[312321502,1705773043892,-3000.0,0.00033846,2]
[312321503,1705773043902,-46291.88074999,0.00034,4]
[312321504,1705773043919,-3708.11925001,0.00034,4]
[312321505,1705773043929,-500.0,0.00034,2]
[312321506,1705773043940,-1000.0,0.00034,4]
[312321507,1705773043949,-1600.0,0.00034,4]
[312321508,1705773043958,-8019.15266711,0.00034,2]
[312321509,1705773043967,-28691.72808288,0.00034,2]
[312321510,1705773044072,-225373.70819265,0.00034,2]
[312321511,1705773044081,-1000.0,0.000342,2]
[312321513,1705773044090,-2795.11,0.00034246,2]
[312321515,1705773044100,-666.0,0.00034246,2]
[312321517,1705773044109,-4425.51274453,0.000345,2]
[312321519,1705773044119,-3000.0,0.0003454,2]
[312321520,1705773044128,-150.24,0.00034569,2]
[312321521,1705773044137,-648.38695362,0.00034591,7]
[312321522,1705773044146,-153.84,0.00034703,2]
[312321523,1705773044155,-57191.53729089,0.00034898,10]
[312321524,1705773044165,-8961.38344061,0.000349,4]
[312321525,1705773044174,-7446.53451976,0.000349,2]
[312321526,1705773044183,-7446.53451963,0.000349,2]
[312321527,1705773044192,-7446.53451963,0.000349,2]
[312321528,1705773044202,-7446.53451963,0.000349,2]
[312321529,1705773044211,-20000.0,0.000349,2]
[312321530,1705773044220,-7446.53451963,0.000349,2]
[312321531,1705773044229,-7446.53451963,0.000349,2]
[312321532,1705773044238,-7446.53451963,0.000349,2]
[312321533,1705773044248,-7446.53451963,0.000349,2]
[312321534,1705773044257,-230.35,0.00034951,2]
[312321535,1705773044266,-10085.66366643,0.00034978,7]
[312321536,1705773044275,-1735.03020729,0.0003499,2]
[312321537,1705773044285,-203.93112054,0.00034999,2]
[312321538,1705773044295,-215.98204294,0.00034999,2]
[312321539,1705773044304,-100000.0,0.00035,5]
[312321540,1705773044313,-15747.42472386,0.00035,7]
[312321541,1705773044322,-18135.99785605,0.00035,10]
[312321542,1705773044331,-448.27259389,0.00035,4]
[312321543,1705773044340,-1800.50171288,0.00035,4]
[312321544,1705773044349,-5000.0,0.00035,2]
[312321545,1705773044358,-155.0,0.00035,2]
[312321546,1705773044370,-620.01315922,0.00035,4]
[312321547,1705773044379,-23500.47032796,0.00035,4]
[312321548,1705773044388,-1601.43133814,0.00035,2]
[312321549,1705773044397,-615.21134689,0.00035,4]
[312321550,1705773044406,-23482.78889771,0.00035,2]
[312321551,1705773044416,-12930.11348998,0.00035,2]
[312321552,1705773044431,-95210.77672792,0.00035,2]
[312321553,1705773044442,-44138.98068409,0.00035,2]
[312321554,1705773044456,-1334.25292,0.00035,2]
[312321555,1705773044482,-270.5502,0.00035,2]
[312321556,1705773044622,-1084.72835193,0.00035,2]
[312321557,1705773044634,-881.80562,0.00035,2]
[312321558,1705773044645,-434.11028904,0.00035,2]
[312321559,1705773044681,-293386.34,0.00035,2]
[312321560,1705773044693,-329.9889276,0.00035,2]
[312321561,1705773044713,-489.47653646,0.00035,2]
[312321562,1705773044727,-290.39991326,0.00035,2]
[312321563,1705773044739,-434.88,0.00035,2]
[312321564,1705773044750,-473.04997849,0.00035,2]
[312321565,1705773044761,-587.4769397,0.00035,2]
[312321566,1705773044772,-368.04046622,0.00035,2]
[312321567,1705773044783,-753.39095171,0.00035,2]
[312321568,1705773044800,-1448.8175428,0.00035,2]
[312321569,1705773045161,-4704.19,0.00035,2]
[312321570,1705773045173,-510.52346354,0.00035,2]
[312321571,1705773045184,-5437.3662979,0.00035,2]
[312321572,1705773045472,-503.39945503,0.00030477,2]
[312321573,1705773045481,-724.7569113,0.00035,2]
[312321574,1705773045492,-10609.41758713,0.00035,2]
[312321575,1705773045503,-3039.90105551,0.00035,2]
[312321576,1705773045514,-5802.69154706,0.00035,2]
[312321577,1705773045526,-1739.34536785,0.00035,2]
[312321578,1705773045551,-18098.32026219,0.00035,2]
[312321579,1705773045560,-3833.10456341,0.00035,2]
[312321580,1705773045569,-7405.5314152,0.00035,2]
[312321581,1705773045578,-931.973522,0.00035,2]
[312321582,1705773045587,-319.23061136,0.00035,7]
[312321583,1705773045596,-400.0,0.00035,3]
[312321584,1705773045605,-884.14060496,0.00035,2]
[312321585,1705773045615,-600.0,0.00035,3]
[312321586,1705773045624,-101439.67651484,0.00035,2]
[312321587,1705773045633,-20000.0,0.00035,2]
[312321588,1705773045642,-25062.05991039,0.000352,2]
[312321589,1705773045651,-1138.0,0.0003527,2]
[312321590,1705773045660,-150.0,0.0003527,2]
[312321591,1705773045669,-150.0,0.0003527,2]
[312321592,1705773045678,-2929.5567078,0.00035271,3]
[312321593,1705773045687,-7446.53451963,0.00035331,2]
[312321594,1705773045696,-4000.0,0.000354,17]
[312321595,1705773045705,-207.0,0.00035409,14]
[312321596,1705773045714,-200.0,0.00035449,2]
[312321597,1705773045723,-150.24,0.00035455,2]
[312321598,1705773045732,-261.04,0.00035472,2]
[312321599,1705773045741,-339.19,0.00035472,2]
[312321600,1705773045750,-2102.50081879,0.00035515,7]
[312321601,1705773045759,-192.61145803,0.00035532,2]
[312321602,1705773045768,-2000.0,0.00035576,2]
[312321603,1705773045777,-200.0,0.00035576,2]
[312321604,1705773045786,-2000.0,0.00035576,2]
[312321605,1705773045795,-200.0,0.00035576,2]
[312321606,1705773045805,-2795.11,0.00035616,2]
[312321607,1705773045815,-153.84,0.00035616,2]
[312321608,1705773045824,-198.21015724,0.00035625,4]
[312321609,1705773045833,-291.71338211,0.00035625,4]
[312321610,1705773045842,-209.0048868,0.00035625,4]
[312321611,1705773045851,-212.26784479,0.00035625,4]
[312321612,1705773045861,-854.32637403,0.00035625,4]
[312321613,1705773045870,-155.30529518,0.00035625,4]
[312321614,1705773045879,-618.07388545,0.00035625,4]
[312321615,1705773045888,-1475.41857169,0.00035627,4]
[312321616,1705773045898,-819.8312848,0.00035627,4]
[312321617,1705773045909,-200.0,0.00035627,2]
[312321619,1705773045918,-5839.85633545,0.00035627,4]
[312321621,1705773045928,-1970.0276266,0.00035627,3]
[312321622,1705773045939,-838.0844007,0.00035627,2]
[312321624,1705773045948,-435.17009699,0.00035627,4]
[312321626,1705773045958,-683.8796574,0.00035627,4]
[312321628,1705773045967,-2000.0,0.00035627,2]
[312321629,1705773045977,-200.0,0.00035627,2]
[312321630,1705773045986,-215.98204294,0.00035631,2]
[312321631,1705773045996,-203.93112054,0.00035631,2]
[312321633,1705773046006,-203.93112054,0.00035631,2]
[312321635,1705773046015,-215.98204294,0.00035631,2]
[312321637,1705773046025,-101439.67651484,0.00035632,2]
[312321639,1705773046034,-165285.4771834,0.00035632,2]
[312321641,1705773046043,-16074.00618327,0.00035632,2]
[312321643,1705773046052,-12810.95554873,0.00035632,2]
[312321645,1705773046062,-23951.1920968,0.00035632,2]
[312321648,1705773046082,-1210.0,0.00035632,2]
[312321650,1705773046093,-2107.73877261,0.00035632,2]
[312321652,1705773046102,-332.51502275,0.00035632,2]
[312321654,1705773046112,-2872.39062172,0.00035632,2]
[312321656,1705773046121,-5764.49999367,0.00035632,2]
[312321658,1705773046131,-1452.52174978,0.00035632,2]
[312321660,1705773046140,-7043.05142148,0.00035632,2]
[312321662,1705773046150,-20022.79393921,0.00035632,10]
[312321664,1705773046163,-70497.44827195,0.00035632,10]
[312321666,1705773046173,-14293.52220959,0.00035632,2]
[312321668,1705773046182,-2611.63060849,0.00035632,2]
[312321670,1705773046191,-2344.72812334,0.00035632,2]
[312321672,1705773046201,-2552.21392431,0.00035632,2]
[312321674,1705773046211,-131262.86969435,0.00035632,2]
[312321676,1705773046220,-3103.89131799,0.00035632,2]
[312321678,1705773046229,-166.46702465,0.00035632,2]
[312321679,1705773046240,-9954.80417564,0.00035632,2]
[312321680,1705773046249,-3020.6810014,0.00035632,2]
[312321681,1705773046258,-3641.90092648,0.00035632,2]
[312321682,1705773046268,-14452.60387981,0.00035632,2]
[312321683,1705773046277,-1020.89148943,0.00035632,2]
[312321684,1705773046286,-4784.20417182,0.00035632,2]
[312321685,1705773046295,-172.5688468,0.00035632,2]
[312321686,1705773046305,-997.94931194,0.00035632,2]
[312321687,1705773046314,-160.39583797,0.00035632,2]
[312321688,1705773046324,-8817.85765908,0.00035632,2]
[312321689,1705773046371,-1252.20244947,0.00035632,2]
[312321690,1705773046380,-4720.88131421,0.00035632,2]
[312321691,1705773046390,-6716.73154575,0.00035632,2]
[312321692,1705773046400,-21674.43169636,0.00035632,2]
[312321693,1705773046409,-12257.52660723,0.00035632,2]
[312321694,1705773046418,-1835.07395888,0.00035632,2]
[312321695,1705773046428,-643.0,0.00035632,2]
[312321696,1705773046437,-926.52931032,0.00035632,2]
[312321697,1705773046446,-8397.82121836,0.00035632,2]
[312321698,1705773046456,-29443.07817253,0.00035632,2]
[312321699,1705773046467,-547.25900551,0.00035632,2]
[312321700,1705773046476,-762.51887576,0.00035632,2]
[312321701,1705773046485,-219.04206851,0.00035632,2]
[312321702,1705773046495,-199.00084861,0.00035632,2]
[312321703,1705773046504,-52018.56030842,0.00035632,2]
[312321704,1705773046513,-8779.0300773,0.00035632,2]
[312321705,1705773046522,-550.0,0.00035632,2]
[312321706,1705773046531,-998.23167437,0.00035632,2]
[312321707,1705773046541,-10230.2875262,0.00035632,2]
[312321708,1705773046550,-35994.62130036,0.00035632,2]
[312321710,1705773046562,-981.33370749,0.00035632,2]
[312321711,1705773046574,-544.10587771,0.00035632,2]
[312321712,1705773046586,-551.19395689,0.00035632,2]
[312321714,1705773046597,-396.74077807,0.00035632,2]
[312321716,1705773046609,-2364.23337979,0.00035632,2]
[312321718,1705773046621,-298.5982399,0.00035632,2]
[312321721,1705773046633,-431.79686796,0.00035632,2]
[312321723,1705773046646,-448.57519316,0.00035632,2]
[312321725,1705773046749,-1009.5286319,0.00024899,2]
[312321726,1705773046759,-26643.1865681,0.0002968,2]
[312321727,1705773046781,-23356.8134319,0.0002968,2]
[312321728,1705773046790,-119790.75314152,0.00035632,2]
[312321729,1705773046800,-14291.1742412,0.00035632,2]
[312321730,1705773046809,-6000.0,0.00035632,2]
[312321731,1705773046819,-671.1421751,0.00035632,2]
[312321732,1705773046830,-13983.63560557,0.00035632,2]
[312321733,1705773046840,-340.63230334,0.00035632,2]
[312321734,1705773046850,-200.0,0.00035632,2]
[312321735,1705773046859,-11884.16328098,0.00035632,2]
[312321736,1705773046869,-4600.0189431,0.00035632,2]
[312321737,1705773046878,-624.42181715,0.00035632,2]
[312321738,1705773046887,-598.90419347,0.00035632,2]
[312321739,1705773046898,-205.35611474,0.00035632,2]
[312321740,1705773046908,-146690.9161617,0.00035632,2]
[312321741,1705773046917,-429.23712249,0.00035632,2]
[312321742,1705773046927,-1020.08440469,0.00035632,2]
[312321743,1705773046938,-20313.26423469,0.00035632,2]
[312321744,1705773046947,-4321.25239941,0.00035632,2]
[312321745,1705773046957,-2500.0,0.00035632,2]